bitfinex/quotes_SOLUSD_20241218
["timestamp","ask_amount","ask_price","bid_price","bid_amount"]
[1734489040573,10.86869798,219.36,219.28,10.86869798]
[1734489041086,1.5266,219.38,219.22,20.0]
[1734489041260,10.86869798,219.37,219.3,10.86869798]
[1734489041461,12.39529798,219.38,219.3,10.86869798]
[1734489042281,12.39529798,219.38,219.31,10.86869798]
[1734489042792,12.39529798,219.38,219.29,10.86869798]
[1734489042952,10.86869798,219.36,219.29,10.86869798]
[1734489043789,10.86869798,219.36,219.27,10.86869798]
[1734489044156,10.86869798,219.37,219.29,10.86869798]
[1734489044778,6.4973,219.45,219.21,23.776884]
[1734489044779,10.86869798,219.4,219.33,10.86869798]
[1734489044981,12.39529798,219.43,219.36,10.86869798]
[1734489045155,10.86869798,219.44,219.36,10.86869798]
[1734489045354,6.4973,219.45,219.32,0.6837315]
[1734489045554,6.4973,219.45,219.37,10.86869798]
[1734489045781,10.86869798,219.44,219.37,10.86869798]
[1734489045979,10.86869798,219.44,219.35,10.86869798]
[1734489046184,17.36599798,219.45,219.37,10.86869798]
[1734489048074,10.86869798,219.41,219.33,10.86869798]
[1734489049073,10.86869798,219.39,219.31,10.86869798]
[1734489049809,10.86869798,219.4,219.32,10.86869798]
[1734489049972,10.86869798,219.41,219.34,10.86869798]
[1734489050172,10.86869798,219.46,219.38,10.86869798]
[1734489050368,10.86869798,219.46,219.31,0.68373401]
[1734489050705,10.86869798,219.44,219.37,10.86869798]
[1734489053171,10.86869798,219.46,219.39,10.86869798]
[1734489053376,6.367,219.51,219.43,10.86869798]
[1734489053582,12.45689798,219.54,219.45,10.86869798]
[1734489054212,10.86869798,219.56,219.47,10.86869798]
[1734489055786,10.86869798,219.58,219.49,10.86869798]
[1734489055990,12.45689798,219.6,219.43,43.776884]
[1734489056191,10.86869798,219.6,219.53,10.86869798]
[1734489057118,1.5882,219.65,219.55,10.86869798]
[1734489057286,10.86869798,219.66,219.57,10.86869798]
[1734489058021,10.86869798,219.7,219.61,10.86869798]
[1734489058220,10.86869798,219.7,219.63,10.86869798]
[1734489059119,10.86869798,219.66,219.57,10.86869798]
[1734489059622,10.86869798,219.67,219.6,10.86869798]
[1734489060331,10.86869798,219.67,219.58,10.86869798]
[1734489060684,10.86869798,219.67,219.59,10.86869798]
[1734489060983,6.367,219.75,219.66,10.86869798]
[1734489061138,10.86869798,219.77,219.69,10.86869798]
[1734489061342,17.23569798,219.8,219.72,10.86869798]
[1734489062978,10.86869798,219.79,219.71,10.86869798]
[1734489063167,10.86869798,219.78,219.7,10.86869798]
[1734489064073,17.33294956,219.78,219.7,17.33294956]
[1734489064278,20.0,219.77,219.74,17.33294956]
[1734489064576,17.33294956,219.82,219.74,17.33294956]
[1734489064990,17.33294956,219.8,219.72,17.33294956]
[1734489065691,17.33294956,219.82,219.74,17.33294956]
[1734489066470,17.33294956,219.82,219.64,0.68253364]
[1734489066471,1.5905,219.88,219.79,17.33294956]
[1734489066677,17.33294956,219.89,219.81,17.33294956]
[1734489067776,23.56094956,219.91,219.83,17.33294956]
[1734489068197,17.33294956,219.89,219.81,17.33294956]
[1734489069196,20.0,219.86,219.81,17.33294956]
[1734489069527,17.33294956,219.89,219.81,17.33294956]
[1734489070317,23.56094956,219.91,219.83,17.33294956]
[1734489070639,17.33294956,219.91,219.83,17.33294956]
[1734489072312,17.33294956,219.89,219.81,17.33294956]
[1734489074107,17.87451436,219.87,219.79,17.33294956]
[1734489075395,0.5415648,219.87,219.81,17.33294956]
[1734489077543,0.5415648,219.87,219.83,17.33294956]
[1734489078236,0.5415648,219.87,219.78,0.68214193]
[1734489078237,0.5415648,219.87,219.85,17.33294956]
[1734489079105,37.33294956,219.93,219.85,17.33294956]
[1734489079301,17.33294956,219.91,219.83,17.33294956]
[1734489080505,17.33294956,219.91,219.84,23.776884]
[1734489081146,17.33294956,219.91,219.83,17.33294956]
[1734489081646,17.33294956,219.89,219.81,17.33294956]
[1734489082143,17.33294956,219.87,219.79,17.33294956]
[1734489084069,17.33294956,219.85,219.77,17.33294956]
[1734489085077,17.33294956,219.87,219.79,17.33294956]
[1734489085236,17.33294956,219.89,219.81,17.33294956]
[1734489085976,20.0,219.93,219.83,10.81999512]
[1734489085977,10.81999512,219.92,219.83,10.81999512]
[1734489087570,10.81999512,219.92,219.85,10.81999512]
[1734489089138,10.81999512,219.92,219.86,23.776884]
[1734489089359,10.81999512,219.92,219.85,10.81999512]
[1734489091177,10.81999512,219.92,219.86,23.776884]
[1734489091349,20.0,219.93,219.86,23.776884]
[1734489091550,10.81999512,219.97,219.89,10.81999512]
[1734489092686,10.81999512,219.97,219.91,10.81999512]
[1734489093755,10.81999512,219.97,219.86,0.68205711]
[1734489094093,7.8024,220.01,219.82,10.81999512]
[1734489094094,10.81999512,219.91,219.82,10.81999512]
[1734489094293,10.81999512,219.93,219.86,10.81999512]
[1734489094501,10.81999512,219.95,219.86,10.81999512]
[1734489095056,10.81999512,219.93,219.86,10.81999512]
[1734489095602,20.0,219.98,219.84,10.81999512]
[1734489096050,10.81999512,219.96,219.88,10.81999512]
[1734489098294,10.81999512,219.89,219.84,2.62417618]
[1734489098459,10.81999512,219.87,219.8,2.62417618]
[1734489099222,10.81999512,219.87,219.79,13.4441713]
[1734489099432,10.81999512,219.87,219.8,2.62417618]
[1734489099993,17.31894504,219.87,219.8,2.62417618]
[1734489100407,17.31894504,219.87,219.81,2.62417618]
[1734489101298,17.31894504,219.87,219.82,2.63780494]
[1734489101513,17.31894504,219.87,219.81,2.63780494]
[1734489101921,17.31894504,219.85,219.81,2.63780494]
[1734489102611,17.31894504,219.87,219.82,2.63780494]
[1734489104298,17.31894504,219.85,219.82,2.63780494]
[1734489104606,17.31894504,219.87,219.82,2.63780494]
[1734489106435,17.31894504,219.85,219.81,2.63780494]
[1734489106606,17.31894504,219.82,219.8,2.63780494]
[1734489106937,17.31894504,219.82,219.74,20.0]
[1734489106938,17.31894504,219.82,219.79,2.63780494]
[1734489107148,7.7179,219.91,219.77,2.63780494]
[1734489107149,17.31894504,219.8,219.77,2.63780494]
[1734489107294,17.31894504,219.78,219.75,2.63780494]
[1734489107932,17.31894504,219.78,219.74,2.63780494]
[1734489108438,17.31894504,219.78,219.73,2.63780494]
[1734489109407,17.31894504,219.78,219.72,2.63780494]
[1734489110307,17.31894504,219.78,219.7,17.31894504]
[1734489111433,17.31894504,219.82,219.74,17.31894504]
[1734489112151,7.7179,219.91,219.76,17.31894504]
[1734489112435,17.31894504,219.83,219.76,17.31894504]
[1734489112640,17.31894504,219.83,219.75,23.776884]
[1734489113139,17.31894504,219.81,219.74,17.31894504]
[1734489114540,17.31894504,219.83,219.76,17.31894504]
[1734489114729,17.31894504,219.87,219.79,17.31894504]
[1734489115702,8.57884812,220.03,219.86,17.31894504]
[1734489115907,8.57884812,220.03,219.82,20.0]
[1734489115908,8.57884812,220.03,219.92,17.31894504]
[1734489116129,17.31894504,220.0,219.92,17.31894504]
[1734489116713,17.31894504,219.98,219.9,17.31894504]
[1734489117039,17.31894504,219.98,219.91,23.776884]
[1734489118809,17.31894504,219.98,219.9,17.31894504]
[1734489119008,17.31894504,219.96,219.88,17.31894504]
[1734489119439,17.31894504,219.98,219.9,17.31894504]
[1734489120446,17.31894504,219.96,219.86,17.31894504]
[1734489120748,17.31894504,219.94,219.86,17.31894504]
[1734489121930,10.81841307,219.94,219.86,10.81841307]
[1734489122653,10.81841307,219.92,219.84,10.81841307]
[1734489122862,10.81841307,219.9,219.82,10.81841307]
[1734489124036,10.81841307,219.92,219.84,10.81841307]
[1734489124765,10.57793305,219.92,219.84,10.81841307]
[1734489126731,6.1017,219.93,219.86,10.81841307]
[1734489126960,10.81841307,219.96,219.88,10.81841307]
[1734489127336,10.81841307,219.98,219.9,10.81841307]
[1734489127531,10.81841307,219.96,219.88,10.81841307]
[1734489129571,10.81841307,219.94,219.86,10.81841307]
[1734489130069,10.81841307,219.96,219.88,10.81841307]
[1734489130237,1.6399,220.03,219.93,10.81841307]
[1734489130443,10.81841307,220.02,219.93,10.81841307]
[1734489131270,10.81841307,220.03,219.95,10.81841307]
[1734489132380,10.81841307,220.05,219.97,10.81841307]
[1734489132564,1.5094,220.08,219.99,10.81841307]
[1734489132738,10.81841307,220.08,219.99,10.81841307]
[1734489132942,10.81841307,220.08,220.01,10.81841307]
[1734489135465,10.81841307,220.04,219.97,10.81841307]
[1734489135678,10.81841307,220.01,219.93,10.81841307]
[1734489136615,10.81841307,220.03,219.95,10.81841307]
[1734489136898,10.81841307,220.06,219.98,10.81841307]
[1734489137995,17.29022213,220.06,219.98,17.29022213]
[1734489139079,17.29022213,220.06,219.99,23.776884]
[1734489139272,0.5415648,220.09,220.04,17.29022213]
[1734489140210,0.5415648,220.09,220.03,17.29022213]
[1734489140673,0.5415648,220.09,220.04,17.29022213]
[1734489140882,0.5415648,220.09,220.03,17.29022213]
[1734489141201,17.29022213,220.04,219.91,1.6024]
[1734489141507,1.5094,220.08,219.98,17.29022213]
[1734489141508,17.29022213,220.06,219.98,17.29022213]
[1734489142077,17.29022213,220.08,220.0,17.29022213]
[1734489142872,17.29022213,220.08,219.92,0.68174961]
[1734489142873,17.29022213,220.04,219.96,17.29022213]
[1734489143872,17.29022213,220.02,219.94,17.29022213]
[1734489144204,17.29022213,219.96,219.82,2.28429978]
[1734489144505,17.29022213,219.96,219.88,17.29022213]
[1734489144686,17.29022213,219.98,219.88,17.29022213]
[1734489144869,7.6111,220.01,219.9,17.29022213]
[1734489145069,0.5415648,220.09,220.0,17.29022213]
[1734489145291,17.83178693,220.09,220.0,17.29022213]
[1734489145487,17.29022213,220.07,220.0,17.29022213]
[1734489147495,17.29022213,220.07,219.98,17.29022213]
[1734489149412,17.29022213,220.07,220.0,17.29022213]
[1734489149582,17.83178693,220.09,220.0,17.29022213]
[1734489152388,17.83178693,220.09,219.98,23.776884]
[1734489152389,0.5415648,220.09,219.98,23.776884]
[1734489152590,17.83178693,220.09,220.01,17.29022213]
[1734489153209,17.29022213,220.07,219.99,17.29022213]
[1734489154084,17.83178693,220.09,219.99,17.29022213]
[1734489154384,17.83178693,220.09,219.96,0.68175295]
[1734489154385,17.83178693,220.09,220.01,17.29022213]
[1734489160218,0.5415648,220.09,220.02,10.8025751]
[1734489161032,10.8025751,220.08,220.0,10.8025751]
[1734489161202,10.8025751,220.06,219.95,23.776884]
[1734489161406,10.8025751,220.04,219.92,0.68175032]
[1734489161719,10.8025751,220.04,219.96,10.8025751]
[1734489162229,10.8025751,220.06,219.96,10.8025751]
[1734489162535,10.8025751,220.06,219.92,0.68175032]
[1734489162536,10.8025751,220.06,219.98,10.8025751]
[1734489163930,10.8025751,220.04,219.96,10.8025751]
[1734489166772,10.8025751,220.08,220.0,10.8025751]
[1734489167078,0.5415648,220.09,220.02,10.8025751]
[1734489173363,0.5415648,220.09,220.0,10.8025751]
[1734489175048,0.5415648,220.09,219.98,1.631]
[1734489175049,10.8025751,220.08,219.98,1.631]
[1734489175247,10.8025751,220.08,219.98,12.4335751]
[1734489175669,10.8025751,220.08,220.0,10.8025751]
[1734489177967,10.8025751,220.08,219.98,12.4335751]
[1734489178294,0.5415648,220.09,219.98,10.8025751]
[1734489178295,10.8025751,220.06,219.98,10.8025751]
[1734489181368,10.8025751,220.02,219.94,10.8025751]
[1734489181884,10.8025751,220.04,219.94,10.8025751]
[1734489182979,10.8025751,220.02,219.94,10.8025751]
[1734489183179,10.8025751,220.0,219.92,10.8025751]
[1734489183380,10.8025751,219.98,219.9,10.8025751]
[1734489184202,10.8025751,219.94,219.85,5.55979554]
[1734489184382,10.8025751,219.94,219.86,10.8025751]
[1734489184692,10.8025751,219.92,219.84,10.8025751]
[1734489184890,10.8025751,219.92,219.81,1.5591]
[1734489184891,10.8025751,219.9,219.82,10.8025751]
[1734489187098,6.2421,219.96,219.88,10.8025751]
[1734489187300,17.0446751,219.96,219.88,10.8025751]
[1734489188202,10.8025751,219.96,219.88,10.8025751]
[1734489190201,10.8025751,219.94,219.86,10.8025751]
[1734489191586,10.8025751,219.96,219.88,10.8025751]
[1734489193089,10.8025751,219.94,219.86,10.8025751]
[1734489194580,20.0,219.97,219.88,10.8025751]
[1734489194803,30.8025751,219.97,219.88,10.8025751]
[1734489199509,10.8025751,219.93,219.86,10.8025751]
[1734489201129,10.8025751,219.91,219.84,10.8025751]
[1734489202425,10.8025751,219.89,219.82,10.8025751]
[1734489203517,10.8025751,219.89,219.8,10.8025751]
[1734489204940,10.8025751,219.87,219.78,12.3865751]
[1734489205147,10.8025751,219.87,219.78,10.8025751]
[1734489205440,10.8025751,219.85,219.78,10.8025751]
[1734489206537,10.8025751,219.85,219.76,10.8025751]
[1734489206920,10.8025751,219.83,219.76,10.8025751]
[1734489207125,10.8025751,219.83,219.74,10.8025751]
[1734489207742,6.0511,219.91,219.75,10.8025751]
[1734489207743,10.8025751,219.82,219.75,10.8025751]
[1734489209915,10.8025751,219.83,219.76,10.8025751]
[1734489211103,10.8025751,219.83,219.74,10.8025751]
[1734489211320,10.8025751,219.81,219.74,10.8025751]
[1734489211535,10.8025751,219.8,219.72,10.8025751]
[1734489211929,10.8025751,219.8,219.73,10.8025751]
[1734489213110,10.8025751,219.81,219.73,10.8025751]
[1734489219494,1.5687,219.84,219.73,10.8025751]
[1734489219495,10.8025751,219.8,219.73,10.8025751]
[1734489220996,1.5687,219.84,219.66,11.80899554]
[1734489220997,10.8025751,219.77,219.66,5.55979554]
[1734489221217,10.8025751,219.74,219.67,10.8025751]
[1734489221494,10.8025751,219.73,219.65,10.8025751]
[1734489222037,6.93631993,219.73,219.65,6.93631993]
[1734489222622,8.05075938,219.81,219.64,1.6409]
[1734489222623,6.93631993,219.71,219.64,1.6409]
[1734489222919,6.93631993,219.7,219.64,1.6409]
[1734489223119,8.05075938,219.81,219.59,1.6409]
[1734489223120,6.93631993,219.69,219.59,1.6409]
[1734489223320,6.93631993,219.68,219.6,6.93631993]
[1734489223699,1.5687,219.75,219.56,6.01985558]
[1734489223700,6.93631993,219.67,219.56,6.01985558]
[1734489223958,6.93631993,219.63,219.56,6.93631993]
[1734489224242,6.2443,219.69,219.52,1.6409]
[1734489224243,10.84776613,219.62,219.55,10.84776613]
[1734489224405,10.84776613,219.63,219.56,10.84776613]
[1734489225218,10.84776613,219.62,219.55,10.84776613]
[1734489225620,10.84776613,219.62,219.54,10.84776613]
[1734489226000,6.2443,219.69,219.53,10.84776613]
[1734489226001,10.84776613,219.61,219.53,10.84776613]
[1734489226199,10.84776613,219.58,219.48,11.57965112]
[1734489226503,10.84776613,219.58,219.51,10.84776613]
[1734489226826,10.84776613,219.59,219.52,10.84776613]
[1734489228006,10.84776613,219.61,219.52,10.84776613]
[1734489228206,21.5687,219.66,219.52,10.84776613]
[1734489228207,10.84776613,219.59,219.52,10.84776613]
[1734489228815,10.84776613,219.59,219.5,10.84776613]
[1734489229808,1.5687,219.66,219.54,10.84776613]
[1734489229809,10.84776613,219.63,219.54,10.84776613]
[1734489230914,10.84776613,219.61,219.54,10.84776613]
[1734489231112,10.84776613,219.61,219.52,10.84776613]
[1734489232227,10.84776613,219.63,219.54,10.84776613]
[1734489232617,10.84776613,219.63,219.56,10.84776613]
[1734489233017,6.2443,219.69,219.58,10.84776613]
[1734489233018,10.84776613,219.67,219.58,10.84776613]
[1734489233330,10.84776613,219.67,219.6,10.84776613]
[1734489235822,10.84776613,219.67,219.58,10.84776613]
[1734489237805,10.84776613,219.65,219.56,10.84776613]
[1734489238008,10.84776613,219.63,219.54,10.84776613]
[1734489238327,10.84776613,219.61,219.54,10.84776613]
[1734489239719,10.84776613,219.59,219.51,1.575]
[1734489240234,6.2443,219.69,219.52,10.84776613]
[1734489240235,10.84776613,219.61,219.52,10.84776613]
[1734489240402,20.0,219.66,219.54,10.84776613]
[1734489240403,10.84776613,219.63,219.54,10.84776613]
[1734489240911,10.84776613,219.63,219.56,10.84776613]
[1734489241106,10.84776613,219.65,219.57,10.84776613]
[1734489243320,10.84776613,219.69,219.61,10.84776613]
[1734489245130,10.84776613,219.69,219.6,10.84776613]
[1734489247410,10.84776613,219.69,219.62,10.84776613]
[1734489248153,10.84776613,219.65,219.58,10.84776613]
[1734489248328,10.84776613,219.65,219.54,6.2822]
[1734489248508,10.84776613,219.65,219.57,10.84776613]
[1734489248708,10.84776613,219.63,219.55,10.84776613]
[1734489249522,10.84776613,219.61,219.53,10.84776613]
[1734489251029,10.84776613,219.63,219.55,10.84776613]
[1734489251234,10.84776613,219.65,219.57,10.84776613]
[1734489251437,10.60415389,219.65,219.53,0.68309009]
[1734489251742,10.60415389,219.65,219.57,10.84776613]
[1734489252207,10.84776613,219.67,219.59,10.84776613]
[1734489252411,10.84776613,219.69,219.61,10.84776613]
[1734489255128,10.84776613,219.71,219.63,10.84776613]
[1734489257231,10.84776613,219.69,219.61,10.84776613]
[1734489260153,6.93907577,219.69,219.61,6.93907577]
[1734489268331,21.546,219.72,219.63,6.93907577]
[1734489268656,8.48507577,219.72,219.63,6.93907577]
[1734489269356,6.3503,219.75,219.65,6.93907577]
[1734489269532,6.3503,219.75,219.67,6.93907577]
[1734489269729,13.28937577,219.75,219.67,6.93907577]
[1734489270331,6.93907577,219.73,219.63,43.776884]
[1734489270533,6.93907577,219.73,219.65,6.93907577]
[1734489271430,13.28937577,219.75,219.67,6.93907577]
[1734489272954,6.93907577,219.73,219.64,0.68270913]
[1734489273157,6.93907577,219.73,219.65,6.93907577]
[1734489274447,1.6203,219.78,219.65,6.93907577]
[1734489274756,6.93907577,219.73,219.65,23.776884]
[1734489274932,1.6203,219.78,219.65,30.71595977]
[1734489275138,6.93907577,219.73,219.65,30.71595977]
[1734489275983,1.6203,219.78,219.65,30.71595977]
[1734489276141,6.93907577,219.73,219.65,30.71595977]
[1734489277263,1.6203,219.78,219.68,6.93907577]
[1734489277586,6.93907577,219.76,219.69,6.93907577]
[1734489278850,20.0,219.79,219.69,6.93907577]
[1734489279050,6.93907577,219.78,219.69,6.93907577]
[1734489280160,6.93907577,219.8,219.72,6.93907577]
[1734489280942,6.93907577,219.79,219.72,6.93907577]
[1734489285856,6.93907577,219.8,219.72,6.93907577]
[1734489289051,6.93907577,219.79,219.72,6.93907577]
[1734489289974,6.93907577,219.77,219.69,6.93907577]
[1734489290157,6.93907577,219.76,219.69,6.93907577]
[1734489291281,6.93907577,219.75,219.68,6.93907577]
[1734489292560,6.93907577,219.75,219.67,6.93907577]
[1734489292762,6.93907577,219.74,219.67,6.93907577]
[1734489293066,6.93907577,219.73,219.66,6.93907577]
[1734489293576,6.93907577,219.72,219.64,6.93907577]
[1734489295658,23.776884,219.81,219.67,6.93907577]
[1734489295868,6.93907577,219.76,219.69,6.93907577]
[1734489296472,20.0,219.73,219.69,6.93907577]
[1734489297275,6.4631,219.82,219.69,6.93907577]
[1734489297478,20.0,219.79,219.71,6.93907577]
[1734489297677,6.93907577,219.78,219.71,6.93907577]
[1734489298077,6.4631,219.82,219.72,6.93907577]
[1734489298281,6.93907577,219.8,219.72,6.93907577]
[1734489298456,6.4631,219.82,219.72,6.93907577]
[1734489298660,6.93907577,219.8,219.72,6.93907577]
[1734489298861,6.4631,219.82,219.72,6.93907577]
[1734489299083,6.93907577,219.8,219.72,6.93907577]
[1734489299380,20.0,219.79,219.73,6.93907577]
[1734489299563,6.93907577,219.78,219.67,0.6825572]
[1734489299883,6.93907577,219.75,219.66,20.0]
[1734489300106,6.93907577,219.75,219.68,6.93907577]
[1734489300259,20.0,219.79,219.68,6.93907577]
[1734489300561,6.93907577,219.77,219.69,6.93907577]
[1734489300972,6.93907577,219.76,219.69,6.93907577]
[1734489301964,6.93907577,219.74,219.67,6.93907577]
[1734489302158,6.93907577,219.74,219.62,0.68265636]
[1734489302367,6.93907577,219.72,219.64,6.93907577]
[1734489302759,6.93907577,219.72,219.65,6.93907577]
[1734489302985,20.0,219.79,219.62,0.68265636]
[1734489303160,6.4631,219.82,219.74,6.93907577]
[1734489303360,6.93907577,219.81,219.74,6.93907577]
[1734489305073,6.93907577,219.8,219.73,6.93907577]
[1734489305281,6.93907577,219.8,219.72,6.93907577]
[1734489306674,6.93907577,219.78,219.68,20.68254677]
[1734489306874,6.93907577,219.78,219.71,6.93907577]
[1734489307076,6.93907577,219.8,219.73,6.93907577]
[1734489308010,6.4631,219.82,219.73,6.93907577]
[1734489308471,6.93907577,219.8,219.73,6.93907577]
[1734489309194,6.93907577,219.79,219.72,6.93907577]
[1734489310592,6.93907577,219.79,219.68,20.68254677]
[1734489310768,6.93907577,219.78,219.72,6.93907577]
[1734489311314,6.93907577,219.76,219.68,20.68254677]
[1734489311479,23.776884,219.81,219.7,6.93907577]
[1734489311790,6.4631,219.82,219.72,6.93907577]
[1734489312091,6.93907577,219.79,219.72,6.93907577]
[1734489313366,6.93907577,219.78,219.71,6.93907577]
[1734489314575,6.93907577,219.79,219.72,6.93907577]
[1734489314776,6.69237754,219.79,219.72,6.93907577]
[1734489315863,6.4631,219.82,219.72,6.93907577]
[1734489316076,6.93907577,219.79,219.72,6.93907577]
[1734489317607,6.93907577,219.78,219.71,6.93907577]
[1734489320191,6.93907577,219.77,219.69,0.68254223]
[1734489320378,6.93907577,219.77,219.7,6.93907577]
[1734489320776,6.93907577,219.77,219.69,0.68254223]
[1734489320988,6.93907577,219.76,219.69,7.621618]
[1734489321714,23.776884,219.81,219.69,7.621618]
[1734489321870,6.93907577,219.76,219.69,7.621618]
[1734489322070,6.93907577,219.77,219.7,6.93907577]
[1734489322286,6.93907577,219.78,219.71,6.93907577]
[1734489322522,6.93907577,219.77,219.7,6.93907577]
[1734489323190,6.93907577,219.76,219.69,0.68254223]
[1734489323366,6.93907577,219.71,219.64,7.02559138]
[1734489323573,6.93907577,219.7,219.62,6.93907577]
[1734489323871,6.93907577,219.69,219.62,6.93907577]
[1734489324088,6.38767577,219.69,219.62,6.93907577]
[1734489324303,6.93907577,219.68,219.61,8.59997577]
[1734489324512,6.93907577,219.68,219.55,36.04839613]
[1734489324513,6.93907577,219.65,219.57,7.02559138]
[1734489324712,6.93907577,219.64,219.56,6.93907577]
[1734489324875,6.93907577,219.63,219.55,1.5331]
[1734489325068,6.93907577,219.63,219.55,8.47217577]
[1734489325908,6.93907577,219.61,219.53,6.93907577]
[1734489326716,1.6179,219.66,219.54,6.93907577]
[1734489326878,1.6179,219.66,219.56,6.93907577]
[1734489327194,8.55697577,219.66,219.59,6.93907577]
[1734489327375,8.55697577,219.66,219.54,20.0]
[1734489327579,6.93907577,219.66,219.59,6.93907577]
[1734489327997,6.93907577,219.67,219.59,6.93907577]
[1734489328922,43.776884,219.7,219.59,6.93907577]
[1734489329083,6.93907577,219.67,219.59,6.93907577]
[1734489329600,6.93907577,219.66,219.58,6.93907577]
[1734489330685,6.93907577,219.65,219.57,6.93907577]
[1734489332295,6.93907577,219.62,219.54,6.93907577]
[1734489332787,6.93907577,219.62,219.51,0.68299828]
[1734489332993,6.93907577,219.62,219.54,6.93907577]
[1734489333212,6.93907577,219.64,219.57,6.93907577]
[1734489333378,6.93907577,219.65,219.57,6.93907577]
[1734489334088,6.93907577,219.64,219.57,6.93907577]
[1734489334409,6.93907577,219.62,219.53,20.0]
[1734489334583,6.93907577,219.62,219.54,6.93907577]
[1734489334783,6.93907577,219.62,219.53,20.0]
[1734489335004,6.93907577,219.62,219.54,6.93907577]
[1734489335208,6.93907577,219.62,219.55,6.93907577]
[1734489335509,6.93907577,219.64,219.56,6.93907577]
[1734489337093,6.93907577,219.62,219.54,6.93907577]
[1734489337890,6.93907577,219.62,219.53,20.0]
[1734489338189,6.93907577,219.62,219.55,6.93907577]
[1734489340097,20.0,219.69,219.55,6.93907577]
[1734489340312,6.93907577,219.63,219.55,6.93907577]
[1734489341196,6.93907577,219.64,219.56,6.93907577]
[1734489342412,20.0,219.69,219.56,6.93907577]
[1734489342615,6.93907577,219.65,219.57,6.93907577]
[1734489342813,6.93907577,219.66,219.59,6.93907577]
[1734489343615,20.0,219.69,219.6,6.93907577]
[1734489343833,6.93907577,219.67,219.6,6.93907577]
[1734489344897,6.93907577,219.67,219.59,6.93907577]
[1734489345118,6.93907577,219.66,219.58,6.93907577]
[1734489345317,6.93907577,219.65,219.58,6.93907577]
[1734489345703,6.93907577,219.65,219.57,6.93907577]
[1734489346430,20.0,219.69,219.59,6.93907577]
[1734489346725,6.93907577,219.67,219.59,6.93907577]
[1734489348001,6.93907577,219.67,219.54,0.68309338]
[1734489348201,6.93907577,219.67,219.59,6.93907577]
[1734489349015,6.93907577,219.63,219.54,0.68309338]
[1734489349218,6.93907577,219.63,219.55,6.93907577]
[1734489350127,6.93907577,219.65,219.57,6.93907577]
[1734489350328,1.6179,219.71,219.61,6.93907577]
[1734489350625,6.93907577,219.7,219.63,6.93907577]
[1734489350826,7.6796,219.78,219.67,6.93907577]
[1734489351029,6.93907577,219.75,219.67,6.93907577]
[1734489351217,6.93907577,219.73,219.65,6.93907577]
[1734489354008,23.776884,219.77,219.65,6.93907577]
[1734489354222,6.93907577,219.73,219.65,6.93907577]
[1734489357419,23.776884,219.77,219.65,6.93907577]
[1734489357619,6.93907577,219.72,219.65,6.93907577]
[1734489358230,6.93907577,219.77,219.69,6.93907577]
[1734489358635,6.93907577,219.77,219.67,1.5187]
[1734489358820,6.93907577,219.77,219.69,6.93907577]
[1734489359415,6.93907577,219.75,219.67,1.5187]
[1734489359745,6.93907577,219.74,219.69,20.0]
[1734489359950,7.6796,219.83,219.69,20.0]
[1734489359951,6.93907577,219.75,219.69,20.0]
[1734489360246,6.93907577,219.76,219.69,20.0]
[1734489360549,6.93907577,219.75,219.67,1.5187]
[1734489360830,7.6796,219.83,219.65,6.93907577]
[1734489360831,6.93907577,219.73,219.65,6.93907577]
[1734489361043,6.93907577,219.73,219.63,0.68264685]
[1734489361267,6.93907577,219.72,219.64,6.93907577]
[1734489361539,6.93907577,219.71,219.64,6.93907577]
[1734489362306,6.93907577,219.71,219.63,20.0]
[1734489362519,6.93907577,219.71,219.64,6.93907577]
[1734489362707,23.776884,219.82,219.65,6.93907577]
[1734489362913,6.93907577,219.74,219.66,6.93907577]
[1734489363139,6.93907577,219.75,219.67,6.93907577]
[1734489363725,7.6796,219.83,219.7,6.93907577]
[1734489364036,6.93907577,219.78,219.71,6.93907577]
[1734489364635,6.93907577,219.78,219.7,6.93907577]
[1734489364822,6.93907577,219.78,219.71,6.93907577]
[1734489365420,6.93907577,219.78,219.7,6.93907577]
[1734489365622,6.93907577,219.76,219.68,6.93907577]
[1734489365823,6.93907577,219.76,219.69,6.93907577]
[1734489366040,7.6796,219.83,219.72,6.93907577]
[1734489366357,6.93907577,219.86,219.79,6.93907577]
[1734489366514,6.93907577,219.87,219.8,6.93907577]
[1734489366943,6.93907577,219.87,219.79,6.93907577]
[1734489367146,6.93907577,219.85,219.77,6.93907577]
[1734489367316,6.93907577,219.84,219.76,6.93907577]
[1734489368219,6.93907577,219.81,219.72,0.68242258]
[1734489368423,6.93907577,219.8,219.73,26.93907577]
[1734489369032,23.776884,219.85,219.74,6.93907577]
[1734489369219,6.93907577,219.83,219.75,6.93907577]
[1734489370146,20.0,219.86,219.77,6.93907577]
[1734489370345,6.93907577,219.82,219.75,6.93907577]
[1734489371446,6.93907577,219.8,219.72,20.0]
[1734489371651,6.93907577,219.78,219.72,20.0]
[1734489372246,6.93907577,219.79,219.72,26.93907577]
[1734489373944,23.776884,219.85,219.73,6.93907577]
[1734489374146,6.93907577,219.81,219.74,6.93907577]